Cogmind - Beta 12 @@@ ROGUE MODE // 2023.04.12 @ 08:22:25 Player: Mr Goldstein Result: Self-destructed Performance ------------- Evolutions (1) 500 Regions Visited (2) 400 Robots Destroyed (0) 0 Value Destroyed (0) 0 Prototype IDs (0) 0 Alien Tech Used (0) 0 Bonus (200) 200 TOTAL SCORE: 1100 Bonus ------- Pacifist 200 Cogmind --------- Core Integrity 50/400 Matter 300/300 Energy 100/100 System Corruption 0% Temperature Cool (0) Movement Core (50) Location -9/Materials Parts ------- > --- POWER (1) -------- (None) > --- PROPULSION (4) --- (None) > --- UTILITY (2) ------ (None) > --- WEAPON (2) ------- (None) > --- INVENTORY (5) ---- Light Ion Engine Light Ion Engine Peak State ------------ None Favorites ----------- Power None Propulsion None Utility None Weapon None Build | -11 -10 -9 ------- Run | Jun Mat Mat Slots Evolved 2 | . . 2 Power . | . . . Propulsion 2 | . . 2 Utility . | . . . Weapon . | . . . Parts Attached . | . . . Power . | . . . Engine . | . . . Core . | . . . Reactor . | . . . Propulsion . | . . . Treads . | . . . Leg . | . . . Wheel . | . . . Hover . | . . . Flight . | . . . Utility . | . . . Device . | . . . Storage . | . . . Processor . | . . . Hackware . | . . . Protection . | . . . Artifact . | . . . Weapon . | . . . Energy Gun . | . . . Energy Cannon . | . . . Ballistic Gun . | . . . Ballistic Cannon . | . . . Launcher . | . . . Special Weapon . | . . . Impact Weapon . | . . . Slashing Weapon . | . . . Piercing Weapon . | . . . Special Melee Weapon . | . . . Unidentified Prototypes . | . . . Parts Lost . | . . . Power . | . . . Propulsion . | . . . Utility . | . . . Weapon . | . . . Highest Loss Streak . | . . . To Critical Strikes . | . . . Average Slot Usage (%) . | . . . Naked Turns 126 | . 25 101 Heaviest Build . | . . . Greatest Support 3 | 3 3 3 Greatest Overweight (x) . | . . . Average Overweight (x) . | . . . Largest Inventory Capacity 5 | 5 5 5 Average Capacity 5 | 5 5 5 Most Carried 2 | 2 2 2 Average Carried 1 | 1 2 2 Final Capacity 5 | 5 5 5 Final Carried 2 | 2 2 2 Class Distribution -------------------- 100% | Mutant Dominant Class ---------------- Mutant | -10/Materials Mutant | -9/Materials Resources | -11 -10 -9 ----------- Run | Jun Mat Mat Matter Collected 195 | 105 . 90 Remotely . | . . . Salvage Created . | . . . Parts . | . . . Haulers Intercepted . | . . . Recyclers Shooed . | . . . Parts Field Recycled . | . . . Retrieved Matter . | . . . Parts Self-Destructed . | . . . Prevented . | . . . Kills | -11 -10 -9 ------- Run | Jun Mat Mat Combat Hostiles Destroyed . | . . . Classes Destroyed . | . . . Best Kill Streak . | . . . Combat Bots Only . | . . . Max Kills in Single Turn . | . . . Gunslinging . | . . . Exploded . | . . . Melee . | . . . Uniques/NPCs Destroyed . | . . . Combat | -11 -10 -9 -------- Run | Jun Mat Mat Damage Taken 420 | . 70 350 Core 420 | . 70 350 Absorbed by Shields . | . . . Core Remaining (%) 86 | 100 72 . Volleys Fired . | . . . Largest . | . . . Hottest . | . . . Shots Fired . | . . . Gun . | . . . Cannon . | . . . Launcher . | . . . Special . | . . . Kinetic . | . . . Thermal . | . . . Explosive . | . . . Electromagnetic . | . . . Robot Hit Streak . | . . . Robot Miss Streak . | . . . Penetration Max . | . . . Secondary Targets . | . . . Shots Hit Robots . | . . . Core Hits . | . . . Critical Kills . | . . . Critical Parts Destroyed . | . . . Critical Strikes . | . . . Melee Attacks . | . . . Impact . | . . . Slashing . | . . . Piercing . | . . . Sneak Attacks . | . . . Combat Hostiles . | . . . Follow-up Attacks . | . . . Damage Inflicted 18 | . 6 12 Guns . | . . . Cannons . | . . . Explosions . | . . . Melee . | . . . Ramming 18 | . 6 12 Kinetic . | . . . Thermal . | . . . Explosive . | . . . Electromagnetic . | . . . Impact . | . . . Slashing . | . . . Piercing . | . . . Highest Corruption . | . . . Average Corruption . | . . . Corruption Purged . | . . . Corruption Blocked . | . . . Overload Shots . | . . . Overflow Damage . | . . . Projectiles . | . . . Explosions . | . . . Melee . | . . . Knockbacks . | . . . Impact . | . . . Kinetic . | . . . Secondary . | . . . Self-Inflicted Damage 9 | . 3 6 Shots . | . . . Rammed 3 | . 1 2 Targets Rammed 3 | . 1 2 Kicked . | . . . Crushed . | . . . Highest Temperature . | . . . Average Temperature . | . . . Received Heat Transfer 129 | . 12 117 Siege Activations . | . . . Robots Corrupted . | . . . Combat Hostiles . | . . . Parts Fried . | . . . Impact Corruptions . | . . . Robots Melted . | . . . Combat Hostiles . | . . . Parts Melted . | . . . Heat Transferred . | . . . Parts Sabotaged . | . . . Parts Stolen . | . . . Parts Stripped . | . . . Power Chain Reactions . | . . . Missiles Intercepted . | . . . Alert | -11 -10 -9 ------- Run | Jun Mat Mat Peak Influence 170 | . . 170 Initial . | . . . Average 33 | . . 46 Maximum Alert Level . | . . . Low Security (%) 100 | 100 100 100 Level 1 . | . . . Level 2 . | . . . Level 3 . | . . . Level 4 . | . . . Level 5 . | . . . High Security . | . . . Max Security . | . . . Squads Dispatched 3 | . . 3 Investigation . | . . . Extermination . | . . . Reinforcement 3 | . . 3 Assault . | . . . Garrison . | . . . Intercept . | . . . Searches Triggered . | . . . Construction Impeded . | . . . Haulers Reinforced . | . . . Active Scanning Responses . | . . . Cargo Convoy Interrupts . | . . . Stealth | -11 -10 -9 --------- Run | Jun Mat Mat Distress Signals . | . . . Communications Jammed . | . . . Distress Signals . | . . . Times Spotted 24 | . 4 20 Peak Tracking Total 16 | . 4 16 Tactical Retreats 1 | . . 1 Traps | -11 -10 -9 ------- Run | Jun Mat Mat Traps Triggered 1 | . . 1 Indirectly . | . . . Trap Hack Attempts . | . . . Triggered . | . . . Disarmed . | . . . Reprogrammed . | . . . Reused . | . . . Traps Extracted . | . . . Installed . | . . . Triggered . | . . . Machines | -11 -10 -9 ---------- Run | Jun Mat Mat Machines Disabled . | . . . Max in Single Turn . | . . . Machines Repaired . | . . . Machines Sabotaged . | . . . Overloaded Fab Kills . | . . . Hacking | -11 -10 -9 --------- Run | Jun Mat Mat Machines Accessed 1 | . . 1 Terminals 1 | . . 1 Fabricators . | . . . Repair Stations . | . . . Recycling Units . | . . . Scanalyzers . | . . . Garrison Access . | . . . Total Hacks 1 | . . 1 Successful 1 | . . 1 Failed . | . . . Catastrophic . | . . . Database Lockouts . | . . . Manual 1 | . . 1 Terminals 1 | . . 1 Fabricators . | . . . Repair Stations . | . . . Recycling Units . | . . . Scanalyzers . | . . . Garrison Access . | . . . Terminal Hacks 1 | . . 1 Zone Layout 1 | . . 1 Fabricator Hacks . | . . . Repair Station Hacks . | . . . Recycling Unit Hacks . | . . . Scanalyzer . | . . . Garrison Access Hacks . | . . . Unauthorized Hacks . | . . . Terminals . | . . . Fabricators . | . . . Repair Stations . | . . . Recycling Units . | . . . Scanalyzers . | . . . Garrison Access . | . . . Data Cores Recovered . | . . . Used . | . . . Hacking Detections . | . . . Full Trace Events . | . . . Feedback Events . | . . . Feedback Blocked . | . . . Robot Schematics Acquired . | . . . Robots Built . | . . . Authchips . | . . . Time . | . . . Total Robot Build Rating . | . . . Part Schematics Acquired . | . . . Parts Built . | . . . Authchips . | . . . Time . | . . . Total Part Build Rating . | . . . Parts Repaired . | . . . Time . | . . . Parts Recycled . | . . . Recycled Matter . | . . . Retrieved Matter . | . . . Retrieved Components . | . . . Parts Scanalyzed . | . . . Part Schematics Acquired . | . . . Parts Damaged . | . . . Bothacking | -11 -10 -9 ------------ Run | Jun Mat Mat Used RIF Installer . | . . . Robots Hacked . | . . . Non-combat . | . . . Combat . | . . . Robot Hacks Applied . | . . . Relay Couplers Released . | . . . Fabnet Peak Effective % . | . . . Robots Rewired . | . . . Allies Hacked . | . . . Hacks Repelled . | . . . Allies | -11 -10 -9 -------- Run | Jun Mat Mat Total Allies . | . . . Largest Group . | . . . Highest-Rated Group . | . . . Highest-Rated Ally . | . . . Total Orders . | . . . Ally Attacks . | . . . Total Damage . | . . . Kills . | . . . Allies Corrupted . | . . . Allies Melted . | . . . Intel | -11 -10 -9 ------- Run | Jun Mat Mat Robot Analysis Total . | . . . Derelict Logs Recovered . | . . . Drone Launches . | . . . Drone Recoveries . | . . . Exploration | -11 -10 -9 ------------- Run | Jun Mat Mat Turns Passed 138 | 12 25 101 Spaces Moved 264 | 20 48 196 Core 264 | 20 48 196 Treads . | . . . Legs . | . . . Wheels . | . . . Hover . | . . . Flight . | . . . Fastest Speed 50 | 50 50 50 Average Speed 50 | 50 50 50 Slowest Speed 50 | 50 50 50 Overloaded Moves . | . . . Propulsion Burnouts . | . . . Robots Hopped . | . . . Cave-ins Triggered . | . . . Exploration Rate (%) 18 | 3 13 39 Regions Visited 2 Branch Regions . Pre-discovered Areas . | . . . Known Exits Taken . | . . . Unknown Exits Taken 2 | 1 1 . Scrap Searched . | . . . Spaces Dug . | . . . Terrain Destroyed . | . . . Melee . | . . . Projectile . | . . . AOE . | . . . Terrain Rammed . | . . . Walls Destroyed . | . . . Machines Disabled . | . . . Actions | -11 -10 -9 --------- Run | Jun Mat Mat Total 267 | 21 48 198 Wait . | . . . Move 262 | 19 47 196 Hop . | . . . Pick Up 2 | 2 . . Fast Attach . | . . . Attach . | . . . Detach . | . . . Swap . | . . . Drop . | . . . Fire . | . . . Melee . | . . . Ram 3 | . 1 2 Kick . | . . . Crush . | . . . Escape Stasis . | . . . Rewire . | . . . Trap . | . . . Miscellaneous . | . . . Route ------- -11/Junkyard -10/Materials -9/Materials (discovered 1 exit: [*Min]) History --------- Turn | Location | Event 5 | -11/Junkyard | Discovered new exit (range 16) 13 | -11/Junkyard | Entered Materials 34 | -10/Materials | Discovered new exit (range 9) 38 | -10/Materials | Entered another Materials area 38 | -9/Materials | Evolved 2 slots: Propulsion x2 105 | -9/Materials | Discovered new exit (range 6) 121 | -9/Materials | Core integrity fell below 50% 130 | -9/Materials | Core integrity fell below 20% 139 | -9/Materials | Self-destructed Last Messages --------------- 00089_ K-01 Serf collects debris. 00093_ Triggered EMP Trap. 00093_ A bubble of electromagnetic force engulfs the area. 00093_ Matter Pump disabled. 00093_ K-01 Serf collects debris. 00096_ Acquired 2 matter. 00097_ K-01 Serf collects debris. 00100_ U-05 Engineer lays Concrete. 00101_ ALERT: Hostiles spotted, dispatching reinforcements to Terminal M008. 00102_ U-05 Engineer lays Concrete. 00105_ EXIT=FOUND 00113_ O-16 Technician: "IFF HANDSHAKE FAILED. SECURING TERMINAL." 00114_ T-07 Excavator is excavating. 00114_ C-30 ARC bursts open, deploying its payload. 00114_ L-31 Rogue unfolds itself. 00114_ G-34 Mercenary unfolds itself. 00115_ ALERT: Hostiles spotted, dispatching reinforcements to Terminal M001. 00120_ Acquired 88 matter. 00123_ Critical hit (Burn: +37). 00128_ Slammed into Y-45 Defender. Map ----- +----------------------------------------------------+ | ??????????????????????????????? | | ??????????????????????????????? | | ??????????????????????????????? | | ??????????????????????????????? | | ??????????????????????????????? | | ??????????????????????????????? | | ??????????????????????????????? | | ??????????????????????????????? | | ??????????????????????????????? | | ??????????????????????????????? | | ??????????????????????????????? | | ??????????????????????????????? | | ??????????????????????????????? | | ??????????????????????????????? | | ??????????????????????????????? | | ??????????????????????????????? | | ?????????????????????#######??? | | ??????????????????? ? #??? | | ??????????????????# """ #??? | | ??????????????????# """ #??? | | ??????????????????# """ #??? | | ??????????????????+ #??? | | ??????????????????# """ #??? | | ??????????????????# """ #??? | | ??????????????????# """ #??? | | ??????????????????# @ #??? | | ??????????????????####+##/##??? | | ??????? ?????????????# #???? | | ??????? ?????????????# #???? | | ??????? ?????????????# #???? | | ??????? ?????????????# #???? | | ??????? ?????????????# #???? | | ??????? #########+##?#Y #???? | | ??????? # T # ??#s #???? | | ??????# # # ??#s####???? | | ??????# # # """ ???#s#??????? | | ??????# # # """ ???# #??????? | | ??????# # #?"""????# #??????? | | ??????# # ?? ??### ###????? | | ??????# # ?##+##?# #????? | | ??????# ##+### ### #????? | | ####### % #????? | | ##+### ### ! #????? | | # ?## ##?# #????? | | " + ??# #??###+###????? | | "%" # ? #?????????????? | | " # "" # #?????????????? | | ####### # "" # #?????????????? | | ??????# # "T + #?????????????? | | ??????# # "" ## #?????????????? | +----------------------------------------------------+ Best States ------------- Heat Dissipation 28 Energy Generation 5 Energy Capacity 100 Matter Stores 300 Matter Capacity 300 Sight Range 16 Terrain Scan Density 10 Evasion (%) 50 Item Schematics ----------------- None Robot Schematics ------------------ None Fabricated ------------ Nothing Alien Tech Used ----------------- None Achievements -------------- None Challenges ------------ None Game ------ Seed ArcCoolingDisintegrator Manual? 0 Play Time 00:03:07 Cumulative 96.0 hours Start 2023.04.12 @ 08:20:35 End 2023.04.12 @ 08:22:25 Sessions 1 Manual Loads 0 Difficulty Rogue Special Mode None Game No. 202 Rogue 202 Adventurer 0 Explorer 0 Win Type - Total 2 Types 2/0/0/0/0/0/0/0/0 Lore% 55 Gallery% 57 Achievement% 46 Wizard Run 0 Options --------- ASCII 0 Keyboard 0 Movement Numpad Keybinds 0 Fullscreen 1 Font 12/Smallcaps Map View 83x54 Tactical HUD 1 Map Filters NONE Filters NONE Steam 1 RUN: 64407cb7-8ccf-4177-b796-2e5e7a9b5936